[Event "DVM U14 2024"]
[Site "Heidelberg"]
[Date "2024.12.28"]
[Round "4"]
[White "Obermair, Hannes"]
[Black "Draxler, Henning"]
[Result "1-0"]
[ECO "D32"]
[WhiteElo "1653"]
[BlackElo "1480"]
[Annotator "NA RC"]
[PlyCount "96"]
[EventDate "2024.12.23"]
[EventType "team-tourn"]
[EventRounds "7"]
[EventCountry "GER"]
[SourceTitle "playchess.com"]
[Source "ChessBase"]
[SourceQuality "1"]
[TimeControl "40/5400+30:1800+30"]

1. c4 {[%emt 0:00:02]} e6 {[%emt 0:00:09]} 2. d4 {[%emt 0:00:07]} d5 {[%emt 0:00:25]} 3. Nc3 {[%emt 0:00:06]} c5 {[%emt 0:00:56]} 4. cxd5 {[%emt 0:00:48]} cxd4 {[%emt 0:01:07]} 5. Qxd4 {[%emt 0:00:30]} Nc6 {[%emt 0:02:25]} 6. Qd1 {[%emt 0:00:45]} exd5 {[%emt 0:01:08]} 7. Qxd5 {[%emt 0:01:18]} Be6 {[%emt 0:00:47]} 8. Qxd8+ {[%emt 0:00:43]} Rxd8 {[%emt 0:00:09]} 9. Bd2 {[%emt 0:01:05]} Nb4 {[%emt 0:01:15]} 10. Kd1 {[%emt 0:01:03]} Bc5 {[%emt 0:09:25]} 11. e3 {[%emt 0:03:56]} a6 {[%emt 0:05:11]} 12. Nf3 {[%emt 0:08:09]} Nf6 {[%emt 0:04:38]} 13. Rc1 {[%emt 0:05:45]} Ba7 {[%emt 0:04:04]} 14. b3 {[%emt 0:09:01]} Ng4 {[%emt 0:05:26]} 15. Ke1 {[%emt 0:02:10]} Bf5 {[%emt 0:07:38]} 16. h3 {[%emt 0:08:53]} Nf6 {[%emt 0:05:20]} 17. Bc4 {[%emt 0:12:42]} O-O {[%emt 0:07:41]} 18. g4 {[%emt 0:09:18]} Bg6 {[%emt 0:02:51]} 19. Ne5 {[%emt 0:01:21]} b5 {[%emt 0:18:26]} 20. Nxg6 {[%emt 0:01:26]} hxg6 {[%emt 0:00:19]} 21. Be2 {[%emt 0:01:39]} Rd7 {[%emt 0:03:15]} 22. Nxb5 {[%emt 0:02:16]} Rxd2 {[%emt 0:10:15]} 23. Kxd2 {[%emt 0:00:55]} axb5 {[%emt 0:00:10]} 24. Bxb5 {[%emt 0:01:01]} Rd8+ {[%emt 0:00:35]} 25. Ke2 {[%emt 0:00:34]} Nxa2 {[%emt 0:00:26]} 26. Rc2 {[%emt 0:03:40]} Nb4 {[%emt 0:00:15]} 27. Rc4 {[%emt 0:00:56]} Nbd5 {[%emt 0:01:41]} 28. Rd1 {[%emt 0:01:57]} Rb8 {[%emt 0:01:32]} 29. Ba4 {[%emt 0:01:28]} Ne7 {[%emt 0:02:00]} 30. Rc7 {[%emt 0:00:50]} Ned5 {[%emt 0:01:16]} 31. Rxd5 {[%emt 0:01:04]} Nxd5 {[%emt 0:00:29]} 32. Rxa7 {[%emt 0:00:16]} Kf8 {[%emt 0:01:05]} 33. Kd3 {[%emt 0:02:22]} g5 {[%emt 0:01:29]} 34. Rd7 {[%emt 0:01:16]} Nb4+ {[%emt 0:00:33]} 35. Kc4 {[%emt 0:01:31]} Nc2 {[%emt 0:00:17]} 36. Kd3 {[%emt 0:02:02]} Ne1+ {[%emt 0:00:19]} 37. Ke2 {[%emt 0:01:11]} Ng2 {[%emt 0:00:04]} 38. Rd4 {[%emt 0:00:57]} Nh4 {[%emt 0:00:30]} 39. b4 {[%emt 0:01:01]} Ke7 {[%emt 0:00:25]} 40. Bc6 {[%emt 0:00:49]} Ng6 {[%emt 0:00:23]} 41. b5 {[%emt 0:32:42]} Ne5 {[%emt 0:30:45]} 42. Rd5 {[%emt 0:01:17]} f6 {[%emt 0:01:10]} 43. f4 {[%emt 0:03:14]} gxf4 {[%emt 0:00:14]} 44. exf4 {[%emt 0:00:22]} Nc4 {[%emt 0:00:54]} 45. Rd7+ {[%emt 0:01:51]} Kf8 {[%emt 0:00:14]} 46. Bd5 {[%emt 0:01:48]} Ke8 {[%emt 0:00:00]} 47. Rxg7 {[%emt 0:00:00]} Nd6 {[%emt 0:00:00]} 48. Rg8+ {[%emt 0:00:00]} Kd7 {[%emt 0:00:00]} 1-0

[Event "DVM U14 2024"]
[Site "Heidelberg"]
[Date "2024.12.28"]
[Round "4"]
[White "Laube, Karl"]
[Black "Belenki, Janis"]
[Result "0-1"]
[ECO "D02"]
[WhiteElo "1635"]
[BlackElo "1611"]
[Annotator "NA RC"]
[PlyCount "106"]
[EventDate "2024.12.23"]
[EventType "team-tourn"]
[EventRounds "7"]
[EventCountry "GER"]
[SourceTitle "playchess.com"]
[Source "ChessBase"]
[SourceQuality "1"]
[TimeControl "40/5400+30:1800+30"]

1. d4 {[%emt 0:00:02]} Nf6 {[%emt 0:00:07]} 2. Bf4 {[%emt 0:00:02]} d5 {[%emt 0:00:05]} 3. e3 {[%emt 0:00:05]} c5 {[%emt 0:00:08]} 4. Nf3 {[%emt 0:00:11]} Bg4 {[%emt 0:00:10]} 5. c3 {[%emt 0:00:12]} e6 {[%emt 0:00:55]} 6. h3 {[%emt 0:00:19]} Bh5 {[%emt 0:00:15]} 7. Nbd2 {[%emt 0:00:43]} Bd6 {[%emt 0:01:07]} 8. Bxd6 {[%emt 0:00:39]} Qxd6 {[%emt 0:00:28]} 9. Be2 {[%emt 0:00:58]} Nc6 {[%emt 0:01:54]} 10. O-O {[%emt 0:00:32]} O-O {[%emt 0:00:27]} 11. Nb3 {[%emt 0:00:51]} b6 {[%emt 0:02:44]} 12. Qc2 {[%emt 0:01:35]} e5 {[%emt 0:02:38]} 13. dxe5 {[%emt 0:01:01]} Nxe5 {[%emt 0:00:26]} 14. Nxe5 {[%emt 0:00:18]} Qxe5 {[%emt 0:00:30]} 15. Rfd1 {[%emt 0:00:22]} Bg6 {[%emt 0:00:39]} 16. Qd2 {[%emt 0:00:36]} Rad8 {[%emt 0:01:44]} 17. Bf3 {[%emt 0:00:22]} h6 {[%emt 0:01:46]} 18. Qe2 {[%emt 0:00:12]} Rfe8 {[%emt 0:03:52]} 19. Rd2 {[%emt 0:00:44]} Ne4 {[%emt 0:03:25]} 20. Bxe4 {[%emt 0:00:39]} Bxe4 {[%emt 0:00:24]} 21. Rad1 {[%emt 0:00:41]} Bg6 {[%emt 0:05:02]} 22. Re1 {[%emt 0:05:25]} f5 {[%emt 0:16:06]} 23. c4 {[%emt 0:02:14]} dxc4 {[%emt 0:04:24]} 24. Rxd8 {[%emt 0:07:11]} Rxd8 {[%emt 0:00:19]} 25. Qxc4+ {[%emt 0:00:22]} Bf7 {[%emt 0:00:41]} 26. Qc2 {[%emt 0:00:16]} c4 {[%emt 0:06:43]} 27. Nd2 {[%emt 0:01:36]} Qd5 {[%emt 0:05:31]} 28. Nf3 {[%emt 0:02:21]} b5 {[%emt 0:07:19]} 29. Nd4 {[%emt 0:03:18]} f4 {[%emt 0:01:20]} 30. Qc3 {[%emt 0:02:26]} fxe3 {[%emt 0:00:50]} 31. fxe3 {[%emt 0:01:06]} Qc5 {[%emt 0:10:53]} 32. a3 {[%emt 0:02:52]} Qg5 {[%emt 0:06:55]} 33. Re2 {[%emt 0:02:45]} Qg3 {[%emt 0:06:18]} 34. Re1 {[%emt 0:04:06]} Bd5 {[%emt 0:03:21]} 35. Qd2 {[%emt 0:00:38]} Bxg2 {[%emt 0:00:51]} 36. Qf2 {[%emt 0:01:04]} Qxf2+ {[%emt 0:00:29]} 37. Kxf2 {[%emt 0:00:08]} Bxh3 {[%emt 0:00:12]} 38. Nxb5 {[%emt 0:00:17]} Rd2+ {[%emt 0:03:15]} 39. Re2 {[%emt 0:00:23]} Rxe2+ {[%emt 0:00:27]} 40. Kxe2 {[%emt 0:00:06]} a6 {[%emt 0:01:40]} 41. Nc7 {[%emt 0:30:47]} Bc8 {[%emt 0:31:14]} 42. Kd2 {[%emt 0:00:06]} h5 {[%emt 0:00:28]} 43. Ke2 {[%emt 0:00:09]} Kf7 {[%emt 0:03:14]} 44. Kf3 {[%emt 0:00:09]} Bb7+ {[%emt 0:00:00]} 45. e4 {[%emt 0:00:00]} g5 {[%emt 0:00:00]} 46. Nd5 {[%emt 0:00:00]} Bxd5 {[%emt 0:00:00]} 47. exd5 {[%emt 0:00:00]} Ke7 {[%emt 0:00:00]} 48. Ke4 {[%emt 0:00:00]} Kd6 {[%emt 0:00:00]} 49. Kf5 {[%emt 0:00:00]} h4 {[%emt 0:00:00]} 50. Ke4 {[%emt 0:00:00]} h3 {[%emt 0:00:00]} 51. Kf3 {[%emt 0:00:00]} g4+ {[%emt 0:00:00]} 52. Kg3 {[%emt 0:00:00]} Kxd5 {[%emt 0:00:00]} 53. Kh2 {[%emt 0:00:00]} Kd4 {[%emt 0:00:00]} 0-1

[Event "DVM U14 2024"]
[Site "Heidelberg"]
[Date "2024.12.28"]
[Round "4"]
[White "Meusel, Theodor"]
[Black "Sitnik, Arthur"]
[Result "0-1"]
[ECO "D78"]
[WhiteElo "1608"]
[BlackElo "1668"]
[Annotator "NA RC"]
[PlyCount "62"]
[EventDate "2024.12.23"]
[EventType "team-tourn"]
[EventRounds "7"]
[EventCountry "GER"]
[SourceTitle "playchess.com"]
[Source "ChessBase"]
[SourceQuality "1"]
[TimeControl "40/5400+30:1800+30"]

1. c4 {[%emt 0:00:17]} c6 {[%emt 0:00:02]} 2. g3 {[%emt 0:00:06]} d5 {[%emt 0:00:02]} 3. Bg2 {[%emt 0:00:06]} g6 {[%emt 0:00:03]} 4. d4 {[%emt 0:00:11]} Bg7 {[%emt 0:00:42]} 5. Nf3 {[%emt 0:00:09]} Nf6 {[%emt 0:00:19]} 6. O-O {[%emt 0:01:03]} O-O {[%emt 0:00:06]} 7. b3 {[%emt 0:00:57]} Bf5 {[%emt 0:00:24]} 8. Nc3 {[%emt 0:00:12]} Ne4 {[%emt 0:08:57]} 9. Bb2 {[%emt 0:02:13]} Nd7 {[%emt 0:12:33]} 10. cxd5 {[%emt 0:08:58]} Nxc3 {[%emt 0:00:00]} 11. Bxc3 {[%emt 0:00:09]} cxd5 {[%emt 0:00:00]} 12. Nh4 {[%emt 0:06:03]} Be6 {[%emt 0:00:00]} 13. Rc1 {[%emt 0:09:22]} Rc8 {[%emt 0:00:00]} 14. Qd3 {[%emt 0:07:42]} Nf6 {[%emt 0:00:00]} 15. f3 {[%emt 0:07:51]} Nh5 {[%emt 0:10:48]} 16. Rfd1 {[%emt 0:04:26]} Bf6 {[%emt 0:24:37]} 17. e3 {[%emt 0:08:53]} Qd7 {[%emt 0:01:39]} 18. Bh1 {[%emt 0:01:01]} Rfd8 {[%emt 0:05:39]} 19. Ng2 {[%emt 0:03:07]} Ng7 {[%emt 0:01:16]} 20. Nf4 {[%emt 0:03:59]} Bf5 {[%emt 0:01:01]} 21. Qd2 {[%emt 0:03:56]} g5 {[%emt 0:02:52]} 22. Ne2 {[%emt 0:03:16]} Ne6 {[%emt 0:03:11]} 23. g4 {[%emt 0:04:55]} Bg6 {[%emt 0:00:10]} 24. f4 {[%emt 0:01:54]} gxf4 {[%emt 0:02:49]} 25. exf4 {[%emt 0:00:12]} Be4 {[%emt 0:00:47]} 26. Ng3 {[%emt 0:01:19]} b5 {[%emt 0:10:22]} 27. Nxe4 {[%emt 0:05:32]} dxe4 {[%emt 0:00:17]} 28. d5 {[%emt 0:00:44]} Bxc3 {[%emt 0:02:12]} 29. Rxc3 {[%emt 0:00:08]} Rxc3 {[%emt 0:01:14]} 30. Qxc3 {[%emt 0:00:02]} Nxf4 {[%emt 0:00:38]} 31. Qg3 {[%emt 0:00:52]} Ne2+ {[%emt 0:00:10]} 0-1

[Event "DVM U14 2024"]
[Site "Heidelberg"]
[Date "2024.12.28"]
[Round "4"]
[White "Roessler, Leo"]
[Black "Kommessin, Felix"]
[Result "1-0"]
[ECO "C22"]
[WhiteElo "1589"]
[BlackElo "1757"]
[Annotator "NA RC"]
[PlyCount "79"]
[EventDate "2024.12.23"]
[EventType "team-tourn"]
[EventRounds "7"]
[EventCountry "GER"]
[SourceTitle "playchess.com"]
[Source "ChessBase"]
[SourceQuality "1"]
[TimeControl "40/5400+30:1800+30"]

1. e4 {[%emt 0:00:01]} e5 {[%emt 0:00:06]} 2. d4 {[%emt 0:00:07]} exd4 {[%emt 0:00:05]} 3. Qxd4 {[%emt 0:00:05]} Nc6 {[%emt 0:00:21]} 4. Qe3 {[%emt 0:00:07]} Bb4+ {[%emt 0:01:00]} 5. Nc3 {[%emt 0:01:35]} Nf6 {[%emt 0:00:56]} 6. Bd2 {[%emt 0:00:13]} O-O {[%emt 0:00:32]} 7. O-O-O {[%emt 0:00:15]} Re8 {[%emt 0:00:51]} 8. Qg3 {[%emt 0:00:27]} Nxe4 {[%emt 0:22:39]} 9. Nxe4 {[%emt 0:01:13]} Rxe4 {[%emt 0:00:08]} 10. c3 {[%emt 0:00:06]} Be7 {[%emt 0:12:02]} 11. Nf3 {[%emt 0:04:15]} Bf6 {[%emt 0:19:52]} 12. Bd3 {[%emt 0:03:40]} Re8 {[%emt 0:03:59]} 13. h4 {[%emt 0:12:47]} a5 {[%emt 0:00:14]} 14. Ng5 {[%emt 0:03:00]} Ne5 {[%emt 0:01:28]} 15. Bxh7+ {[%emt 0:02:53]} Kf8 {[%emt 0:00:36]} 16. Bc2 {[%emt 0:04:07]} d5 {[%emt 0:03:24]} 17. Nh7+ {[%emt 0:03:06]} Kg8 {[%emt 0:00:36]} 18. Nxf6+ {[%emt 0:00:35]} Qxf6 {[%emt 0:00:07]} 19. Bg5 {[%emt 0:01:13]} Qe6 {[%emt 0:01:57]} 20. Rhe1 {[%emt 0:04:42]} f6 {[%emt 0:04:48]} 21. Bf4 {[%emt 0:02:58]} Qg4 {[%emt 0:03:08]} 22. Bxe5 {[%emt 0:02:09]} Rxe5 {[%emt 0:00:42]} 23. Qxg4 {[%emt 0:01:00]} Bxg4 {[%emt 0:00:07]} 24. Rxe5 {[%emt 0:00:22]} fxe5 {[%emt 0:00:05]} 25. Rxd5 {[%emt 0:00:35]} Re8 {[%emt 0:00:40]} 26. f3 {[%emt 0:00:43]} Bh5 {[%emt 0:00:13]} 27. Rxa5 {[%emt 0:00:28]} Re7 {[%emt 0:00:56]} 28. Be4 {[%emt 0:01:42]} c6 {[%emt 0:00:13]} 29. Ra8+ {[%emt 0:01:56]} Re8 {[%emt 0:00:44]} 30. Rxe8+ {[%emt 0:00:14]} Bxe8 {[%emt 0:00:04]} 31. Kd2 {[%emt 0:00:09]} Kf7 {[%emt 0:00:06]} 32. Ke3 {[%emt 0:00:22]} Ke6 {[%emt 0:00:10]} 33. g4 {[%emt 0:01:31]} g6 {[%emt 0:00:23]} 34. c4 {[%emt 0:02:05]} Kd6 {[%emt 0:01:11]} 35. f4 {[%emt 0:01:54]} Ke6 {[%emt 0:01:00]} 36. f5+ {[%emt 0:00:23]} gxf5 {[%emt 0:00:20]} 37. Bxf5+ {[%emt 0:00:07]} Kf6 {[%emt 0:00:14]} 38. Ke4 {[%emt 0:00:22]} Bf7 {[%emt 0:00:35]} 39. b3 {[%emt 0:00:40]} b5 {[%emt 0:01:27]} 40. g5+ {[%emt 0:00:30]} 1-0

[Event "DVM U14 2024"]
[Site "Heidelberg"]
[Date "2024.12.28"]
[Round "4"]
[White "Scharff, Oskar"]
[Black "Arora, Ryan"]
[Result "1/2-1/2"]
[ECO "B33"]
[WhiteElo "1583"]
[BlackElo "1390"]
[Annotator "NA RC"]
[PlyCount "56"]
[EventDate "2024.12.23"]
[EventType "team-tourn"]
[EventRounds "7"]
[EventCountry "GER"]
[SourceTitle "playchess.com"]
[Source "ChessBase"]
[SourceQuality "1"]
[TimeControl "40/5400+30:1800+30"]

1. e4 {[%emt 0:00:05]} c5 {[%emt 0:00:17]} 2. Nf3 {[%emt 0:00:07]} Nc6 {[%emt 0:00:05]} 3. d4 {[%emt 0:00:08]} cxd4 {[%emt 0:00:03]} 4. Nxd4 {[%emt 0:00:06]} Nf6 {[%emt 0:00:08]} 5. Nc3 {[%emt 0:00:10]} e5 {[%emt 0:00:07]} 6. Ndb5 {[%emt 0:00:32]} d6 {[%emt 0:00:05]} 7. Bg5 {[%emt 0:00:06]} a6 {[%emt 0:00:06]} 8. Na3 {[%emt 0:00:09]} b5 {[%emt 0:00:54]} 9. Bxf6 {[%emt 0:00:12]} gxf6 {[%emt 0:00:08]} 10. Nd5 {[%emt 0:00:09]} f5 {[%emt 0:03:00]} 11. Bd3 {[%emt 0:01:58]} Be6 {[%emt 0:02:10]} 12. O-O {[%emt 0:23:32]} f4 {[%emt 0:05:41]} 13. c4 {[%emt 0:03:47]} b4 {[%emt 0:04:04]} 14. Nc2 {[%emt 0:06:09]} a5 {[%emt 0:01:34]} 15. b3 {[%emt 0:01:00]} Ra7 {[%emt 0:05:25]} 16. Qh5 {[%emt 0:02:59]} h6 {[%emt 0:11:49]} 17. Ne1 {[%emt 0:05:36]} Rg8 {[%emt 0:03:42]} 18. Qe2 {[%emt 0:05:19]} Nd4 {[%emt 0:04:52]} 19. Qd2 {[%emt 0:00:53]} f3 {[%emt 0:01:23]} 20. Kh1 {[%emt 0:15:05]} fxg2+ {[%emt 0:13:53]} 21. Nxg2 {[%emt 0:00:09]} Bh3 {[%emt 0:00:35]} 22. Nde3 {[%emt 0:00:22]} Nf3 {[%emt 0:05:27]} 23. Qe2 {[%emt 0:00:37]} Nd4 {[%emt 0:00:36]} 24. Qd2 {[%emt 0:00:06]} Nf3 {[%emt 0:02:29]} 25. Qe2 {[%emt 0:00:53]} Nd4 {[%emt 0:00:01]} 26. Qd2 {[%emt 0:00:06]} Qg5 {[%emt 0:00:05]} 27. f3 {[%emt 0:00:16]} Nxf3 {[%emt 0:00:04]} 28. Rf2 Nd4 {[%emt 0:00:02]} 1/2-1/2

[Event "DVM U14 2024"]
[Site "Heidelberg"]
[Date "2024.12.28"]
[Round "4"]
[White "Splitt, Albert"]
[Black "Gorbatschow, Bogdan"]
[Result "0-1"]
[ECO "D00"]
[WhiteElo "1571"]
[BlackElo "1728"]
[Annotator "NA RC"]
[PlyCount "58"]
[EventDate "2024.12.23"]
[EventType "team-tourn"]
[EventRounds "7"]
[EventCountry "GER"]
[SourceTitle "playchess.com"]
[Source "ChessBase"]
[SourceQuality "1"]
[TimeControl "40/5400+30:1800+30"]

1. d4 {[%emt 0:00:04]} Nf6 {[%emt 0:00:07]} 2. Nc3 {[%emt 0:00:06]} d5 {[%emt 0:01:15]} 3. Bf4 {[%emt 0:00:17]} c6 {[%emt 0:00:28]} 4. e3 {[%emt 0:00:35]} Bf5 {[%emt 0:00:58]} 5. f3 {[%emt 0:00:40]} h6 {[%emt 0:01:45]} 6. g4 {[%emt 0:01:22]} Bg6 {[%emt 0:02:33]} 7. Bd3 {[%emt 0:00:55]} Bxd3 {[%emt 0:00:50]} 8. Qxd3 {[%emt 0:00:39]} e6 {[%emt 0:06:17]} 9. Nge2 {[%emt 0:00:25]} Qb6 {[%emt 0:01:03]} 10. Kf2 {[%emt 0:04:32]} Nbd7 {[%emt 0:02:39]} 11. h4 {[%emt 0:00:33]} Be7 {[%emt 0:01:35]} 12. Ng3 {[%emt 0:06:36]} Nf8 {[%emt 0:06:52]} 13. e4 {[%emt 0:08:43]} Ng6 {[%emt 0:04:09]} 14. Be3 {[%emt 0:01:53]} Nxh4 {[%emt 0:03:01]} 15. exd5 {[%emt 0:04:44]} Nxd5 {[%emt 0:02:32]} 16. Nge4 {[%emt 0:05:41]} Nxe3 {[%emt 0:03:03]} 17. Qxe3 {[%emt 0:01:08]} O-O-O {[%emt 0:02:01]} 18. Rhd1 {[%emt 0:03:42]} Ng6 {[%emt 0:03:44]} 19. Na4 {[%emt 0:07:09]} Qa5 {[%emt 0:01:41]} 20. Nac5 {[%emt 0:01:53]} Bxc5 {[%emt 0:01:48]} 21. Nxc5 {[%emt 0:00:17]} Qc7 {[%emt 0:01:04]} 22. Nxe6 {[%emt 0:05:53]} Qh2+ {[%emt 0:01:51]} 23. Kf1 {[%emt 0:00:52]} fxe6 {[%emt 0:01:01]} 24. Qxe6+ {[%emt 0:00:32]} Rd7 {[%emt 0:03:20]} 25. Qxg6 {[%emt 0:00:45]} Rf8 {[%emt 0:00:13]} 26. Qe4 {[%emt 0:01:16]} Re7 {[%emt 0:00:26]} 27. Qd3 {[%emt 0:00:58]} Ref7 {[%emt 0:00:19]} 28. Ke1 {[%emt 0:02:41]} Rxf3 {[%emt 0:01:17]} 29. Qe2 {[%emt 0:00:31]} Qg3+ {[%emt 0:00:20]} 0-1

[Event "DVM U14 2024"]
[Site "Heidelberg"]
[Date "2024.12.28"]
[Round "4"]
[White "Luccone, Constantin"]
[Black "Zielke, Constantin"]
[Result "0-1"]
[ECO "C54"]
[WhiteElo "1567"]
[BlackElo "1543"]
[Annotator "NA RC"]
[PlyCount "76"]
[EventDate "2024.12.23"]
[EventType "team-tourn"]
[EventRounds "7"]
[EventCountry "GER"]
[SourceTitle "playchess.com"]
[Source "ChessBase"]
[SourceQuality "1"]
[TimeControl "40/5400+30:1800+30"]

1. e4 {[%emt 0:00:06]} e5 {[%emt 0:00:05]} 2. Nf3 {[%emt 0:00:10]} Nc6 {[%emt 0:00:05]} 3. Bc4 {[%emt 0:00:03]} Bc5 {[%emt 0:00:04]} 4. c3 {[%emt 0:00:04]} Nf6 {[%emt 0:00:06]} 5. d4 {[%emt 0:00:05]} exd4 {[%emt 0:00:44]} 6. cxd4 {[%emt 0:02:57]} Be7 {[%emt 0:01:12]} 7. Nc3 {[%emt 0:03:03]} d6 {[%emt 0:00:42]} 8. a3 {[%emt 0:01:08]} Bg4 {[%emt 0:01:05]} 9. Be3 {[%emt 0:00:25]} Nxe4 {[%emt 0:01:39]} 10. Nxe4 {[%emt 0:01:32]} d5 {[%emt 0:00:07]} 11. Bd3 {[%emt 0:00:40]} dxe4 {[%emt 0:00:10]} 12. Bxe4 {[%emt 0:00:10]} O-O {[%emt 0:00:39]} 13. O-O {[%emt 0:01:25]} Bf6 {[%emt 0:01:10]} 14. d5 {[%emt 0:09:05]} Ne5 {[%emt 0:02:47]} 15. Qb3 {[%emt 0:14:35]} Nxf3+ {[%emt 0:00:50]} 16. Bxf3 {[%emt 0:00:11]} Bxf3 {[%emt 0:00:08]} 17. gxf3 {[%emt 0:00:11]} Re8 {[%emt 0:02:42]} 18. Kh1 {[%emt 0:00:45]} Qd6 {[%emt 0:01:37]} 19. Rg1 {[%emt 0:02:29]} Be5 {[%emt 0:02:31]} 20. Rg2 {[%emt 0:00:25]} b6 {[%emt 0:03:26]} 21. Rag1 {[%emt 0:04:09]} g6 {[%emt 0:03:57]} 22. Rb1 {[%emt 0:06:45]} Rad8 {[%emt 0:03:39]} 23. Rd1 {[%emt 0:01:37]} c6 {[%emt 0:02:36]} 24. h3 {[%emt 0:02:39]} cxd5 {[%emt 0:00:44]} 25. Rgg1 {[%emt 0:00:37]} Qe6 {[%emt 0:00:43]} 26. Kg2 {[%emt 0:00:30]} Qd6 {[%emt 0:01:44]} 27. Rd2 {[%emt 0:01:15]} d4 {[%emt 0:00:47]} 28. Rgd1 {[%emt 0:00:41]} Qf6 {[%emt 0:00:54]} 29. Bxd4 {[%emt 0:01:56]} Rxd4 {[%emt 0:00:49]} 30. Rxd4 {[%emt 0:00:50]} Bxd4 {[%emt 0:00:10]} 31. Qa4 {[%emt 0:00:12]} Rd8 {[%emt 0:00:41]} 32. Qxa7 {[%emt 0:01:12]} Qg5+ {[%emt 0:00:18]} 33. Kf1 {[%emt 0:00:22]} Qh4 {[%emt 0:00:26]} 34. Rd2 {[%emt 0:00:48]} Qxh3+ {[%emt 0:00:09]} 35. Kg1 {[%emt 0:00:16]} Bxf2+ {[%emt 0:00:28]} 36. Kxf2 {[%emt 0:00:21]} Rxd2+ {[%emt 0:00:13]} 37. Ke3 {[%emt 0:00:04]} Rd8 {[%emt 0:01:09]} 38. Qxb6 {[%emt 0:01:00]} Qe6+ {[%emt 0:00:06]} 0-1

[Event "DVM U14 2024"]
[Site "Heidelberg"]
[Date "2024.12.28"]
[Round "4"]
[White "Yang, Sophie"]
[Black "Meijers, Jaroslav"]
[Result "0-1"]
[ECO "D35"]
[WhiteElo "1547"]
[BlackElo "1663"]
[Annotator "NA RC"]
[PlyCount "114"]
[EventDate "2024.12.23"]
[EventType "team-tourn"]
[EventRounds "7"]
[EventCountry "GER"]
[SourceTitle "playchess.com"]
[Source "ChessBase"]
[SourceQuality "1"]
[TimeControl "40/5400+30:1800+30"]

1. d4 {[%emt 0:00:02]} d5 {[%emt 0:00:06]} 2. c4 {[%emt 0:00:07]} e6 {[%emt 0:00:07]} 3. Nc3 {[%emt 0:00:11]} Nf6 {[%emt 0:00:10]} 4. cxd5 {[%emt 0:00:10]} exd5 {[%emt 0:00:14]} 5. Bg5 {[%emt 0:00:08]} Be7 {[%emt 0:00:10]} 6. e3 {[%emt 0:00:45]} O-O {[%emt 0:00:18]} 7. Nf3 {[%emt 0:00:10]} Bf5 {[%emt 0:00:25]} 8. Be2 {[%emt 0:00:59]} c6 {[%emt 0:01:42]} 9. O-O {[%emt 0:00:13]} h6 {[%emt 0:02:53]} 10. Bh4 {[%emt 0:00:53]} Nbd7 {[%emt 0:01:46]} 11. a3 {[%emt 0:03:51]} Ne4 {[%emt 0:02:55]} 12. Bxe7 {[%emt 0:00:23]} Qxe7 {[%emt 0:00:18]} 13. Nd2 {[%emt 0:02:31]} Qg5 {[%emt 0:03:09]} 14. Nf3 {[%emt 0:02:33]} Qe7 {[%emt 0:12:48]} 15. Rc1 {[%emt 0:04:41]} a5 {[%emt 0:07:07]} 16. Bd3 {[%emt 0:03:49]} Rac8 {[%emt 0:11:17]} 17. Qc2 {[%emt 0:00:59]} Rfe8 {[%emt 0:04:15]} 18. Rb1 {[%emt 0:04:12]} Ndf6 {[%emt 0:02:24]} 19. Ne5 {[%emt 0:04:14]} Ra8 {[%emt 0:05:13]} 20. f3 {[%emt 0:01:30]} Nxc3 {[%emt 0:02:15]} 21. Qxc3 {[%emt 0:01:11]} Bxd3 {[%emt 0:01:24]} 22. Qxd3 {[%emt 0:00:39]} Nd7 {[%emt 0:07:36]} 23. Nxd7 {[%emt 0:00:18]} Qxd7 {[%emt 0:00:02]} 24. b4 {[%emt 0:02:09]} Qe7 {[%emt 0:03:28]} 25. Rfe1 {[%emt 0:00:23]} axb4 {[%emt 0:01:10]} 26. axb4 {[%emt 0:00:15]} b6 {[%emt 0:02:27]} 27. Qc3 {[%emt 0:00:26]} Rac8 {[%emt 0:01:12]} 28. Rbc1 {[%emt 0:01:04]} Rc7 {[%emt 0:05:18]} 29. b5 {[%emt 0:01:22]} Rec8 {[%emt 0:05:28]} 30. bxc6 {[%emt 0:04:01]} Rxc6 {[%emt 0:00:10]} 31. Qxc6 {[%emt 0:01:11]} Rxc6 {[%emt 0:00:27]} 32. Rxc6 {[%emt 0:00:15]} Qb4 {[%emt 0:00:38]} 33. Rec1 {[%emt 0:01:14]} Qd2 {[%emt 0:00:40]} 34. R6c3 {[%emt 0:00:52]} b5 {[%emt 0:00:18]} 35. h3 {[%emt 0:00:22]} b4 {[%emt 0:00:18]} 36. R3c2 {[%emt 0:00:08]} Qxe3+ {[%emt 0:00:18]} 37. Kh1 {[%emt 0:00:26]} b3 {[%emt 0:01:03]} 38. Rc8+ {[%emt 0:00:24]} Kh7 {[%emt 0:00:07]} 39. Rb1 {[%emt 0:00:45]} Qxd4 {[%emt 0:01:04]} 40. Rb8 {[%emt 0:00:17]} Qd2 {[%emt 0:03:05]} 41. R1xb3 {[%emt 0:30:55]} d4 {[%emt 0:30:47]} 42. Rb1 {[%emt 0:01:29]} d3 {[%emt 0:00:31]} 43. Rg1 {[%emt 0:00:40]} Qe2 {[%emt 0:00:23]} 44. Rbb1 {[%emt 0:00:15]} d2 {[%emt 0:00:10]} 45. Rbd1 {[%emt 0:00:51]} g5 {[%emt 0:01:30]} 46. Rgf1 {[%emt 0:00:48]} f5 {[%emt 0:00:48]} 47. Ra1 {[%emt 0:01:47]} Kg6 {[%emt 0:00:41]} 48. Rfb1 {[%emt 0:00:43]} Kh5 {[%emt 0:00:45]} 49. Rf1 {[%emt 0:00:37]} Kh4 {[%emt 0:01:56]} 50. Rg1 {[%emt 0:01:29]} Kg3 {[%emt 0:01:14]} 51. Rad1 {[%emt 0:00:33]} g4 {[%emt 0:01:43]} 52. fxg4 {[%emt 0:00:15]} fxg4 {[%emt 0:00:16]} 53. Ra1 {[%emt 0:02:55]} d1=Q {[%emt 0:04:16]} 54. Rc1 {[%emt 0:00:56]} Qxg1+ 55. Rxg1 {[%emt 0:00:30]} gxh3 {[%emt 0:00:36]} 56. gxh3+ Kxh3 {[%emt 0:00:00]} 57. Rg3+ {[%emt 0:03:27]} Kxg3 {[%emt 0:00:00]} 0-1